[Event "*** Titled Tuesday Blitz"]
[Site "Chess.com"]
[Date "2021.02.16"]
[Round "7"]
[White "CM_rui"]
[Black "paulrusan"]
[Result "0-1"]
[WhiteElo "2402"]
[BlackElo "2271"]
[TimeControl "180+1"]
[EndTime "11:18:49 PST"]
[Termination "paulrusan won by checkmate"]

1. e4 {[%clk 0:03:00.9]} 1... c5 {[%clk 0:02:59.7]} 2. Nf3 {[%clk 0:03:01.2]}
2... Nc6 {[%clk 0:02:59.3]} 3. c4 {[%clk 0:03:01.2]} 3... g6 {[%clk 0:02:58.7]}
4. d4 {[%clk 0:03:01.3]} 4... cxd4 {[%clk 0:02:58.5]} 5. Nxd4 {[%clk 0:03:02.2]}
5... Bg7 {[%clk 0:02:59]} 6. Be3 {[%clk 0:03:02.8]} 6... Nf6 {[%clk 0:02:58.2]}
7. Nc3 {[%clk 0:03:03.4]} 7... O-O {[%clk 0:02:57.1]} 8. Be2 {[%clk 0:03:03.9]}
8... Nxd4 {[%clk 0:02:54.1]} 9. Bxd4 {[%clk 0:03:04.8]} 9... d6 {[%clk
0:02:53.4]} 10. O-O {[%clk 0:03:05.2]} 10... Bd7 {[%clk 0:02:53.7]} 11. Rc1
{[%clk 0:03:04.6]} 11... Bc6 {[%clk 0:02:54]} 12. f3 {[%clk 0:03:04.3]} 12...
Nd7 {[%clk 0:02:54.3]} 13. Bxg7 {[%clk 0:03:05.2]} 13... Kxg7 {[%clk 0:02:54]}
14. Qd4+ {[%clk 0:03:05.9]} 14... f6 {[%clk 0:02:53.8]} 15. Kh1 {[%clk
0:03:05.9]} 15... Qb6 {[%clk 0:02:50.8]} 16. Qd2 {[%clk 0:03:05.9]} 16... a5
{[%clk 0:02:48.2]} 17. f4 {[%clk 0:03:01.9]} 17... a4 {[%clk 0:02:46.1]} 18. h4
{[%clk 0:02:46.6]} 18... Nc5 {[%clk 0:02:40.3]} 19. Bf3 {[%clk 0:02:42.4]} 19...
Qb4 {[%clk 0:02:39]} 20. Qe2 {[%clk 0:02:36.5]} 20... e5 {[%clk 0:02:26.8]} 21.
Rcd1 {[%clk 0:02:29.5]} 21... a3 {[%clk 0:02:25.2]} 22. Rf2 {[%clk 0:02:21.3]}
22... axb2 {[%clk 0:02:21.8]} 23. Qxb2 {[%clk 0:02:22.2]} 23... Qxc4 {[%clk
0:02:13]} 24. Rxd6 {[%clk 0:02:16.4]} 24... Rfd8 {[%clk 0:01:57.7]} 25. fxe5
{[%clk 0:02:09]} 25... fxe5 {[%clk 0:01:53.9]} 26. Nd5 {[%clk 0:01:55.2]} 26...
Qd4 {[%clk 0:01:45.2]} 27. Rxd8 {[%clk 0:01:36.4]} 27... Rxd8 {[%clk 0:01:43]}
28. Rd2 {[%clk 0:01:17.4]} 28... Qxb2 {[%clk 0:01:30.4]} 29. Rxb2 {[%clk
0:01:18.3]} 29... Bxd5 {[%clk 0:01:25.6]} 30. exd5 {[%clk 0:01:19.2]} 30... e4
{[%clk 0:01:25.9]} 31. Bg4 {[%clk 0:01:14.1]} 31... Rxd5 {[%clk 0:01:25.6]} 32.
Bc8 {[%clk 0:01:12.5]} 32... e3 {[%clk 0:01:20.4]} 33. Bxb7 {[%clk 0:01:11.2]}
33... Rd2 {[%clk 0:01:09.4]} 34. Rxd2 {[%clk 0:01:04.3]} 34... exd2 {[%clk
0:01:09.3]} 35. Bf3 {[%clk 0:01:04.9]} 35... Na4 {[%clk 0:00:53.9]} 36. Kg1
{[%clk 0:00:57.1]} 36... Nc3 {[%clk 0:00:53.9]} 37. a4 {[%clk 0:00:55]} 37...
Nxa4 {[%clk 0:00:50.5]} 38. Kf2 {[%clk 0:00:50.6]} 38... Nc3 {[%clk 0:00:50.5]}
39. g4 {[%clk 0:00:44.7]} 39... h6 {[%clk 0:00:48.2]} 40. Ke3 {[%clk 0:00:37.9]}
40... d1=Q {[%clk 0:00:46.5]} 41. Bxd1 {[%clk 0:00:38.4]} 41... Nxd1+ {[%clk
0:00:46.5]} 42. Kf4 {[%clk 0:00:39]} 42... Nc3 {[%clk 0:00:46]} 43. Kg3 {[%clk
0:00:37.2]} 43... g5 {[%clk 0:00:45.6]} 44. hxg5 {[%clk 0:00:35]} 44... hxg5
{[%clk 0:00:45.7]} 45. Kf3 {[%clk 0:00:35.4]} 45... Kf6 {[%clk 0:00:44.3]} 46.
Ke3 {[%clk 0:00:35.7]} 46... Ke5 {[%clk 0:00:44.2]} 47. Kf3 {[%clk 0:00:36]}
47... Ne4 {[%clk 0:00:44.3]} 48. Ke3 {[%clk 0:00:35]} 48... Nf6 {[%clk
0:00:43.7]} 49. Kf3 {[%clk 0:00:26.9]} 49... Kd4 {[%clk 0:00:43.8]} 50. Kg3
{[%clk 0:00:27.2]} 50... Ke4 {[%clk 0:00:44]} 51. Kh3 {[%clk 0:00:27]} 51... Kf4
{[%clk 0:00:44.2]} 52. Kg2 {[%clk 0:00:27.5]} 52... Kxg4 {[%clk 0:00:44.2]} 53.
Kf2 {[%clk 0:00:27.6]} 53... Kh3 {[%clk 0:00:43.7]} 54. Kf3 {[%clk 0:00:27.4]}
54... g4+ {[%clk 0:00:43.5]} 55. Kf4 {[%clk 0:00:28.3]} 55... g3 {[%clk
0:00:43.4]} 56. Kf5 {[%clk 0:00:29.2]} 56... g2 {[%clk 0:00:43.6]} 57. Ke5
{[%clk 0:00:30.1]} 57... g1=Q {[%clk 0:00:42.9]} 58. Ke6 {[%clk 0:00:31]} 58...
Ng4 {[%clk 0:00:42.2]} 59. Kf7 {[%clk 0:00:31.9]} 59... Qb6 {[%clk 0:00:40.4]}
60. Ke8 {[%clk 0:00:32.8]} 60... Qc7 {[%clk 0:00:39.6]} 61. Kf8 {[%clk
0:00:32.9]} 61... Kh4 {[%clk 0:00:38.7]} 62. Kg8 {[%clk 0:00:33.2]} 62... Nf6+
{[%clk 0:00:37.6]} 63. Kf8 {[%clk 0:00:34.1]} 63... Nd5 {[%clk 0:00:36.7]} 64.
Ke8 {[%clk 0:00:33.9]} 64... Qe7# {[%clk 0:00:36]} 0-1

[Event "*** Titled Tuesday Blitz"]
[Site "Chess.com"]
[Date "2021.02.16"]
[Round "7"]
[White "Ajedrez_con_German"]
[Black "Fortitudine"]
[Result "1-0"]
[WhiteElo "2587"]
[BlackElo "2327"]
[TimeControl "180+1"]
[EndTime "11:18:50 PST"]
[Termination "Ajedrez_con_German won on time"]

1. d4 {[%clk 0:03:00.9]} 1... Nf6 {[%clk 0:02:59.5]} 2. Bf4 {[%clk 0:03:00.6]}
2... g6 {[%clk 0:02:56.9]} 3. Nc3 {[%clk 0:02:59.9]} 3... Bg7 {[%clk 0:02:54.3]}
4. e4 {[%clk 0:02:59.6]} 4... O-O {[%clk 0:02:54.6]} 5. Qd2 {[%clk 0:02:59.8]}
5... b6 {[%clk 0:02:46.6]} 6. O-O-O {[%clk 0:02:57.6]} 6... Ba6 {[%clk
0:02:44.7]} 7. f3 {[%clk 0:02:49]} 7... Bxf1 {[%clk 0:02:44]} 8. Rxf1 {[%clk
0:02:48.7]} 8... d6 {[%clk 0:02:43]} 9. h4 {[%clk 0:02:48.3]} 9... h5 {[%clk
0:02:38.2]} 10. Nh3 {[%clk 0:02:44.7]} 10... Nc6 {[%clk 0:02:19.8]} 11. d5
{[%clk 0:02:39.5]} 11... Ne5 {[%clk 0:02:12]} 12. Qe2 {[%clk 0:02:37.8]} 12...
Qd7 {[%clk 0:02:07.6]} 13. Bxe5 {[%clk 0:02:32.3]} 13... dxe5 {[%clk 0:02:07.5]}
14. Nf2 {[%clk 0:02:31.6]} 14... Rac8 {[%clk 0:01:46.4]} 15. g4 {[%clk 0:02:30]}
15... c6 {[%clk 0:01:46.3]} 16. Rd1 {[%clk 0:02:21.6]} 16... Rfd8 {[%clk
0:01:19.5]} 17. Kb1 {[%clk 0:02:10.1]} 17... Qe8 {[%clk 0:01:14.9]} 18. Rhg1
{[%clk 0:02:02.9]} 18... Kh7 {[%clk 0:01:04.5]} 19. Nh3 {[%clk 0:01:49.8]} 19...
e6 {[%clk 0:00:35.7]} 20. dxe6 {[%clk 0:01:43.5]} 20... fxe6 {[%clk 0:00:36.6]}
21. Qe3 {[%clk 0:01:31.7]} 21... c5 {[%clk 0:00:30]} 22. Ng5+ {[%clk 0:01:27.5]}
22... Kg8 {[%clk 0:00:28.2]} 23. gxh5 {[%clk 0:01:27.9]} 23... Nxh5 {[%clk
0:00:28.7]} 24. Ne2 {[%clk 0:01:26.4]} 24... Bh6 {[%clk 0:00:24.4]} 25. a3
{[%clk 0:01:21.9]} 25... Kh8 {[%clk 0:00:20.6]} 26. Qc3 {[%clk 0:01:20.8]} 26...
Rd4 {[%clk 0:00:18.6]} 27. Nxd4 {[%clk 0:01:13.4]} 27... cxd4 {[%clk 0:00:19.5]}
28. Qb3 {[%clk 0:01:12.5]} 28... Nf4 {[%clk 0:00:19.3]} 29. Rh1 {[%clk
0:01:02.5]} 29... Qe7 {[%clk 0:00:18.6]} 30. Nh3 {[%clk 0:00:58.5]} 30... Kg7
{[%clk 0:00:15]} 31. Nxf4 {[%clk 0:00:58.1]} 31... Bxf4 {[%clk 0:00:15.3]} 32.
h5 {[%clk 0:00:56.6]} 32... g5 {[%clk 0:00:15.8]} 33. h6+ {[%clk 0:00:57.1]}
33... Kh7 {[%clk 0:00:16.2]} 34. Qd3 {[%clk 0:00:53.2]} 34... Qc5 {[%clk
0:00:13.9]} 35. Rdg1 {[%clk 0:00:52.2]} 35... b5 {[%clk 0:00:14]} 36. Rh5 {[%clk
0:00:45.9]} 36... Rg8 {[%clk 0:00:13.4]} 37. Rg4 {[%clk 0:00:39.4]} 37... Rg6
{[%clk 0:00:13.1]} 38. Rh1 {[%clk 0:00:39.1]} 38... a5 {[%clk 0:00:12.6]} 39.
Rhg1 {[%clk 0:00:37]} 39... Rxh6 {[%clk 0:00:10.3]} 40. Rxg5 {[%clk 0:00:30.6]}
40... Bxg5 {[%clk 0:00:10.1]} 41. Rxg5 {[%clk 0:00:30.7]} 41... Rh1+ {[%clk
0:00:10.6]} 42. Ka2 {[%clk 0:00:31.1]} 42... Kh6 {[%clk 0:00:04.9]} 43. f4
{[%clk 0:00:25.9]} 1-0

[Event "*** Titled Tuesday Blitz"]
[Site "Chess.com"]
[Date "2021.02.16"]
[Round "7"]
[White "IMAghasiyevKamal"]
[Black "RobertoJBM"]
[Result "1-0"]
[WhiteElo "2541"]
[BlackElo "2696"]
[TimeControl "180+1"]
[EndTime "11:18:51 PST"]
[Termination "IMAghasiyevKamal won on time"]

1. d4 {[%clk 0:03:00.9]} 1... d5 {[%clk 0:02:59.7]} 2. c4 {[%clk 0:02:59.7]}
2... c6 {[%clk 0:02:59.5]} 3. Nc3 {[%clk 0:02:58]} 3... dxc4 {[%clk 0:02:58.1]}
4. e4 {[%clk 0:02:48.4]} 4... b5 {[%clk 0:02:56.9]} 5. a4 {[%clk 0:02:48.5]}
5... b4 {[%clk 0:02:50.8]} 6. Na2 {[%clk 0:02:48.2]} 6... e6 {[%clk 0:02:49.2]}
7. Bxc4 {[%clk 0:02:47.4]} 7... Nf6 {[%clk 0:02:49.1]} 8. f3 {[%clk 0:02:38.5]}
8... Nbd7 {[%clk 0:02:25.8]} 9. Ne2 {[%clk 0:02:35]} 9... a5 {[%clk 0:02:10.5]}
10. Be3 {[%clk 0:02:31.6]} 10... Be7 {[%clk 0:01:41.2]} 11. Nac1 {[%clk
0:02:29.6]} 11... O-O {[%clk 0:01:40]} 12. Nb3 {[%clk 0:02:29.5]} 12... Qb6
{[%clk 0:00:56.7]} 13. Rc1 {[%clk 0:02:04.1]} 13... Rd8 {[%clk 0:00:50.4]} 14.
Qc2 {[%clk 0:02:02]} 14... Bb7 {[%clk 0:00:44.2]} 15. O-O {[%clk 0:01:44.5]}
15... Ne5 {[%clk 0:00:37]} 16. Nc5 {[%clk 0:01:35.5]} 16... Bxc5 {[%clk
0:00:18.7]} 17. dxc5 {[%clk 0:01:33.2]} 17... Qc7 {[%clk 0:00:18.1]} 18. Bf4
{[%clk 0:01:26]} 18... Nh5 {[%clk 0:00:17.3]} 19. Bg5 {[%clk 0:01:10.5]} 19...
Rd7 {[%clk 0:00:17.3]} 20. Rfd1 {[%clk 0:01:04.4]} 20... h6 {[%clk 0:00:09.5]}
21. Be3 {[%clk 0:01:02.5]} 21... Rad8 {[%clk 0:00:08.9]} 22. Rxd7 {[%clk
0:00:50.9]} 22... Qxd7 {[%clk 0:00:09.8]} 23. Nd4 {[%clk 0:00:33]} 23... g5
{[%clk 0:00:08.4]} 24. Bf1 {[%clk 0:00:31.6]} 24... Ng6 {[%clk 0:00:08]} 25. Nb3
{[%clk 0:00:29.7]} 25... Qc7 {[%clk 0:00:07.7]} 26. g3 {[%clk 0:00:27.4]} 26...
Nf6 {[%clk 0:00:07.1]} 27. Bd4 {[%clk 0:00:26.4]} 27... Ne8 {[%clk 0:00:06.9]}
28. Rd1 {[%clk 0:00:25.1]} 28... Bc8 {[%clk 0:00:07.1]} 29. Rd2 {[%clk
0:00:24.5]} 29... e5 {[%clk 0:00:07.6]} 30. Be3 {[%clk 0:00:23.9]} 30... Be6
{[%clk 0:00:08.2]} 31. Bc4 {[%clk 0:00:21.4]} 31... Bxc4 {[%clk 0:00:06.2]} 32.
Qxc4 {[%clk 0:00:21.6]} 32... Ng7 {[%clk 0:00:06.1]} 33. Qa6 {[%clk 0:00:20.5]}
33... Rxd2 {[%clk 0:00:05.9]} 34. Bxd2 {[%clk 0:00:20.5]} 34... Qd7 {[%clk
0:00:05.1]} 35. Qxa5 {[%clk 0:00:19.8]} 35... Qd3 {[%clk 0:00:04.9]} 36. Qxb4
{[%clk 0:00:20]} 36... Ne6 {[%clk 0:00:04.6]} 37. a5 {[%clk 0:00:19.7]} 37... g4
{[%clk 0:00:04.9]} 38. Qc3 {[%clk 0:00:19.8]} 38... Qe2 {[%clk 0:00:04.6]} 39.
Qe3 {[%clk 0:00:18.4]} 39... Qd1+ {[%clk 0:00:04.8]} 40. Kf2 {[%clk 0:00:18.6]}
40... gxf3 {[%clk 0:00:05.1]} 41. a6 {[%clk 0:00:18.3]} 1-0

[Event "*** Titled Tuesday Blitz"]
[Site "Chess.com"]
[Date "2021.02.16"]
[Round "7"]
[White "Khnykin_Nikolay"]
[Black "MerryPoppies"]
[Result "0-1"]
[WhiteElo "2061"]
[BlackElo "2169"]
[TimeControl "180+1"]
[EndTime "11:18:52 PST"]
[Termination "MerryPoppies won on time"]

1. e4 {[%clk 0:03:00.9]} 1... e5 {[%clk 0:02:59.6]} 2. Nf3 {[%clk 0:02:59.7]}
2... Nc6 {[%clk 0:02:59.8]} 3. Bc4 {[%clk 0:03:00.1]} 3... Nf6 {[%clk 0:02:59]}
4. O-O {[%clk 0:02:59.7]} 4... Be7 {[%clk 0:02:58.3]} 5. Nc3 {[%clk 0:02:58.5]}
5... O-O {[%clk 0:02:58.1]} 6. d3 {[%clk 0:02:57.1]} 6... a6 {[%clk 0:02:54]} 7.
Bg5 {[%clk 0:02:51.5]} 7... h6 {[%clk 0:02:53.2]} 8. Bxf6 {[%clk 0:02:50]} 8...
Bxf6 {[%clk 0:02:53.2]} 9. Qd2 {[%clk 0:02:43.5]} 9... b5 {[%clk 0:02:53]} 10.
Bb3 {[%clk 0:02:41.9]} 10... Ne7 {[%clk 0:02:39.8]} 11. Nd5 {[%clk 0:02:39.3]}
11... Nxd5 {[%clk 0:02:39]} 12. Bxd5 {[%clk 0:02:40.2]} 12... c6 {[%clk
0:02:39.3]} 13. Bb3 {[%clk 0:02:38.7]} 13... d5 {[%clk 0:02:37.9]} 14. exd5
{[%clk 0:02:38.1]} 14... cxd5 {[%clk 0:02:38.2]} 15. Rfe1 {[%clk 0:02:34.6]}
15... Re8 {[%clk 0:02:37.4]} 16. d4 {[%clk 0:02:30.6]} 16... e4 {[%clk
0:02:32.6]} 17. Ne5 {[%clk 0:02:29.9]} 17... Bxe5 {[%clk 0:02:32.3]} 18. dxe5
{[%clk 0:02:30.6]} 18... Rxe5 {[%clk 0:02:32.8]} 19. Qd4 {[%clk 0:02:30.3]}
19... Qd6 {[%clk 0:02:17.5]} 20. f4 {[%clk 0:02:26.5]} 20... Rh5 {[%clk
0:02:03.5]} 21. Rxe4 {[%clk 0:02:17.9]} 21... Be6 {[%clk 0:01:33.2]} 22. Re3
{[%clk 0:02:00.2]} 22... Rc8 {[%clk 0:01:21.4]} 23. Rg3 {[%clk 0:01:58.1]} 23...
g6 {[%clk 0:00:53.7]} 24. Re1 {[%clk 0:01:42.5]} 24... Rf5 {[%clk 0:00:49.5]}
25. Rf3 {[%clk 0:00:51.6]} 25... Qc5 {[%clk 0:00:48.3]} 26. Qxc5 {[%clk
0:00:50.3]} 26... Rxc5 {[%clk 0:00:49.2]} 27. g4 {[%clk 0:00:49.3]} 27... Rf6
{[%clk 0:00:46.8]} 28. h3 {[%clk 0:00:48.6]} 28... a5 {[%clk 0:00:30.7]} 29. c3
{[%clk 0:00:46.5]} 29... a4 {[%clk 0:00:30.7]} 30. Bc2 {[%clk 0:00:46]} 30... d4
{[%clk 0:00:30.5]} 31. Bb1 {[%clk 0:00:18.2]} 31... dxc3 {[%clk 0:00:29.2]} 32.
bxc3 {[%clk 0:00:19.1]} 32... Bd5 {[%clk 0:00:25.2]} 33. Re8+ {[%clk 0:00:15.5]}
33... Kg7 {[%clk 0:00:24.9]} 34. Rfe3 {[%clk 0:00:08.4]} 34... Rxf4 {[%clk
0:00:22.9]} 35. Rb8 {[%clk 0:00:07.6]} 35... Bc4 {[%clk 0:00:21.1]} 36. Kg2
{[%clk 0:00:06.1]} 36... Rf6 {[%clk 0:00:18.7]} 37. Ree8 {[%clk 0:00:04.2]}
37... Rd6 {[%clk 0:00:14.1]} 38. h4 {[%clk 0:00:03]} 38... Rd2+ {[%clk
0:00:13.6]} 39. Kf3 {[%clk 0:00:03]} 39... Bxa2 {[%clk 0:00:12.7]} 0-1

[Event "*** Titled Tuesday Blitz"]
[Site "Chess.com"]
[Date "2021.02.16"]
[Round "7"]
[White "Rozum_Ivan"]
[Black "FMJoseHerrera"]
[Result "1-0"]
[WhiteElo "2768"]
[BlackElo "2599"]
[TimeControl "180+1"]
[EndTime "11:18:54 PST"]
[Termination "Rozum_Ivan won on time"]

1. e4 {[%clk 0:03:00.9]} 1... c5 {[%clk 0:02:59.2]} 2. Nf3 {[%clk 0:03:00.2]}
2... e6 {[%clk 0:02:56.8]} 3. d4 {[%clk 0:02:59.5]} 3... cxd4 {[%clk 0:02:57.2]}
4. Nxd4 {[%clk 0:03:00.4]} 4... a6 {[%clk 0:02:56.7]} 5. Bd3 {[%clk 0:02:59.5]}
5... Qc7 {[%clk 0:02:56.5]} 6. O-O {[%clk 0:02:58.7]} 6... b6 {[%clk 0:02:55.1]}
7. Re1 {[%clk 0:02:56.2]} 7... Bb7 {[%clk 0:02:54.5]} 8. c4 {[%clk 0:02:45.8]}
8... d6 {[%clk 0:02:53.9]} 9. Nc3 {[%clk 0:02:45.2]} 9... Nd7 {[%clk 0:02:53.1]}
10. Bg5 {[%clk 0:02:39.4]} 10... Ne5 {[%clk 0:01:13.9]} 11. Rc1 {[%clk
0:02:34.6]} 11... Qc5 {[%clk 0:01:05.8]} 12. Bf1 {[%clk 0:02:26.7]} 12... Nf6
{[%clk 0:00:57.8]} 13. h3 {[%clk 0:01:48.9]} 13... Be7 {[%clk 0:00:56.9]} 14.
Be3 {[%clk 0:01:46.1]} 14... Qc7 {[%clk 0:00:56.5]} 15. f4 {[%clk 0:01:45.3]}
15... Ng6 {[%clk 0:00:53.5]} 16. f5 {[%clk 0:01:42.1]} 16... exf5 {[%clk
0:00:53.2]} 17. Nxf5 {[%clk 0:01:29.8]} 17... O-O {[%clk 0:00:43.2]} 18. Bd4
{[%clk 0:01:30.1]} 18... Ne5 {[%clk 0:00:37.5]} 19. Qd2 {[%clk 0:01:29.7]} 19...
Bc8 {[%clk 0:00:30.3]} 20. Nxe7+ {[%clk 0:00:58.5]} 20... Qxe7 {[%clk
0:00:31.2]} 21. Bxb6 {[%clk 0:00:59]} 21... Bxh3 {[%clk 0:00:28.4]} 22. Bd4
{[%clk 0:00:54.2]} 22... Be6 {[%clk 0:00:26.6]} 23. Nd5 {[%clk 0:00:49.6]} 23...
Bxd5 {[%clk 0:00:26.6]} 24. exd5 {[%clk 0:00:50.5]} 24... Rfe8 {[%clk
0:00:26.5]} 25. Bxe5 {[%clk 0:00:47.5]} 25... dxe5 {[%clk 0:00:26.1]} 26. d6
{[%clk 0:00:47.6]} 26... Qa7+ {[%clk 0:00:20.2]} 27. Qe3 {[%clk 0:00:41.4]}
27... Qb7 {[%clk 0:00:19.8]} 28. c5 {[%clk 0:00:36.3]} 28... Rac8 {[%clk
0:00:19.9]} 29. Rc2 {[%clk 0:00:31.1]} 29... a5 {[%clk 0:00:20.2]} 30. Rec1
{[%clk 0:00:30.2]} 30... Red8 {[%clk 0:00:19.7]} 31. c6 {[%clk 0:00:28.7]} 31...
Qb4 {[%clk 0:00:17.6]} 32. d7 {[%clk 0:00:27]} 32... Rc7 {[%clk 0:00:17.9]} 33.
Qxe5 {[%clk 0:00:23.1]} 33... Qb6+ {[%clk 0:00:17.5]} 34. Qc5 {[%clk 0:00:22.3]}
34... Qb8 {[%clk 0:00:10.3]} 35. Qxa5 {[%clk 0:00:20.9]} 35... Ng4 {[%clk
0:00:09.6]} 36. Qg5 {[%clk 0:00:13.8]} 36... Qb6+ {[%clk 0:00:07.2]} 37. Rc5
{[%clk 0:00:14]} 37... Rxc6 {[%clk 0:00:04.2]} 38. Qxd8+ {[%clk 0:00:08.2]}
38... Qxd8 {[%clk 0:00:03.7]} 39. Rxc6 {[%clk 0:00:09.1]} 39... Qxd7 {[%clk
0:00:01.1]} 40. Rc8+ {[%clk 0:00:09.1]} 1-0

[Event "*** Titled Tuesday Blitz"]
[Site "Chess.com"]
[Date "2021.02.16"]
[Round "7"]
[White "oneshot007"]
[Black "Shahaliyev"]
[Result "0-1"]
[WhiteElo "2516"]
[BlackElo "2677"]
[TimeControl "180+1"]
[EndTime "11:18:56 PST"]
[Termination "Shahaliyev won by resignation"]

1. e4 {[%clk 0:00:39.2]} 1... c6 {[%clk 0:02:57.9]} 2. d4 {[%clk 0:00:36.9]}
2... d5 {[%clk 0:02:58.5]} 3. e5 {[%clk 0:00:37.2]} 3... Bf5 {[%clk 0:02:57.6]}
4. h4 {[%clk 0:00:37.5]} 4... h5 {[%clk 0:02:55.4]} 5. c4 {[%clk 0:00:37.6]}
5... e6 {[%clk 0:02:55]} 6. Nc3 {[%clk 0:00:38.1]} 6... Nd7 {[%clk 0:02:55.1]}
7. cxd5 {[%clk 0:00:37.6]} 7... cxd5 {[%clk 0:02:54.6]} 8. Nge2 {[%clk
0:00:38.1]} 8... Ne7 {[%clk 0:02:50.3]} 9. Ng3 {[%clk 0:00:37.7]} 9... Bg6
{[%clk 0:02:50]} 10. Bg5 {[%clk 0:00:38.3]} 10... Qb6 {[%clk 0:02:46.8]} 11. Bb5
{[%clk 0:00:38.9]} 11... Nc6 {[%clk 0:02:46.5]} 12. Rc1 {[%clk 0:00:39.6]} 12...
Bb4 {[%clk 0:02:44.9]} 13. Bxc6 {[%clk 0:00:36.9]} 13... bxc6 {[%clk 0:02:44.2]}
14. O-O {[%clk 0:00:37.4]} 14... f6 {[%clk 0:01:21.3]} 15. exf6 {[%clk
0:00:38.3]} 15... gxf6 {[%clk 0:01:22.2]} 16. Be3 {[%clk 0:00:34.9]} 16... Kf7
{[%clk 0:01:22.4]} 17. Nce2 {[%clk 0:00:32.8]} 17... Bd6 {[%clk 0:01:20.7]} 18.
Nf4 {[%clk 0:00:30.6]} 18... Bxf4 {[%clk 0:01:20.6]} 19. Bxf4 {[%clk 0:00:31.5]}
19... Qxb2 {[%clk 0:01:16.8]} 20. Rxc6 {[%clk 0:00:28.6]} 20... Rac8 {[%clk
0:01:16.1]} 21. Qa4 {[%clk 0:00:25.9]} 21... Qb7 {[%clk 0:01:11.7]} 22. Ra6
{[%clk 0:00:23.7]} 22... Ra8 {[%clk 0:01:02.9]} 23. Re1 {[%clk 0:00:23.3]} 23...
Nb6 {[%clk 0:01:03.4]} 24. Qb5 {[%clk 0:00:18.8]} 24... Rhe8 {[%clk 0:01:03.4]}
25. a3 {[%clk 0:00:15.3]} 25... Rac8 {[%clk 0:00:57.8]} 26. a4 {[%clk
0:00:15.3]} 26... Rc3 {[%clk 0:00:36]} 27. a5 {[%clk 0:00:10.8]} 27... Bd3
{[%clk 0:00:33.4]} 28. Rxa7 {[%clk 0:00:10.2]} 28... Qxa7 {[%clk 0:00:32]} 29.
axb6 {[%clk 0:00:10.7]} 29... Qb7 {[%clk 0:00:17.1]} 30. Qb4 {[%clk 0:00:07.2]}
30... Rc6 {[%clk 0:00:17.5]} 31. Qd2 {[%clk 0:00:05.3]} 31... Bg6 {[%clk
0:00:17.8]} 32. Bc7 {[%clk 0:00:02.4]} 32... Ra8 {[%clk 0:00:17.7]} 33. Kh2
{[%clk 0:00:02.9]} 33... Ra3 {[%clk 0:00:17.1]} 34. Qh6 {[%clk 0:00:03.4]} 34...
Rxc7 {[%clk 0:00:15.4]} 35. bxc7 {[%clk 0:00:03.3]} 35... Qxc7 {[%clk
0:00:16.3]} 36. Kh3 {[%clk 0:00:03.1]} 36... Qc2 {[%clk 0:00:13]} 37. Re3 {[%clk
0:00:03.6]} 37... Rxe3 {[%clk 0:00:12.5]} 38. Qxe3 {[%clk 0:00:04.5]} 38... Qd1
{[%clk 0:00:12.9]} 39. Qh6 {[%clk 0:00:04.7]} 39... Qg4+ {[%clk 0:00:13]} 40.
Kh2 {[%clk 0:00:05.3]} 40... Qxh4+ {[%clk 0:00:13.9]} 41. Kg1 {[%clk 0:00:05.2]}
41... Qxd4 {[%clk 0:00:11.7]} 42. Nxh5 {[%clk 0:00:05.4]} 42... Qd1+ {[%clk
0:00:12]} 43. Kh2 {[%clk 0:00:05.8]} 43... Qxh5+ {[%clk 0:00:12.9]} 0-1

[Event "*** Titled Tuesday Blitz"]
[Site "Chess.com"]
[Date "2021.02.16"]
[Round "7"]
[White "Aradhya2000"]
[Black "IAgrest"]
[Result "1-0"]
[WhiteElo "2580"]
[BlackElo "2339"]
[TimeControl "180+1"]
[EndTime "11:18:56 PST"]
[Termination "Aradhya2000 won on time"]

1. d4 {[%clk 0:03:00.9]} 1... Nf6 {[%clk 0:02:59.5]} 2. c4 {[%clk 0:03:00.8]}
2... g6 {[%clk 0:02:59.9]} 3. g3 {[%clk 0:03:00.1]} 3... Bg7 {[%clk 0:03:00.3]}
4. Bg2 {[%clk 0:03:00.1]} 4... O-O {[%clk 0:03:01]} 5. Nc3 {[%clk 0:03:00]} 5...
d6 {[%clk 0:03:01.5]} 6. Nf3 {[%clk 0:02:59.4]} 6... Nbd7 {[%clk 0:03:00.9]} 7.
O-O {[%clk 0:02:58.9]} 7... a6 {[%clk 0:03:01.1]} 8. Qc2 {[%clk 0:02:57.1]} 8...
Re8 {[%clk 0:02:54.4]} 9. Rd1 {[%clk 0:02:56.6]} 9... e5 {[%clk 0:02:50.7]} 10.
dxe5 {[%clk 0:02:56.4]} 10... dxe5 {[%clk 0:02:50.8]} 11. Be3 {[%clk 0:02:40.5]}
11... c6 {[%clk 0:02:47.5]} 12. h3 {[%clk 0:02:39.2]} 12... Qe7 {[%clk
0:02:46.2]} 13. Nd2 {[%clk 0:02:37.9]} 13... Nc5 {[%clk 0:02:39.2]} 14. Nb3
{[%clk 0:02:22.6]} 14... Ne6 {[%clk 0:02:02.1]} 15. Na4 {[%clk 0:02:06]} 15...
h5 {[%clk 0:01:52]} 16. Nb6 {[%clk 0:01:43.2]} 16... Rb8 {[%clk 0:01:51.5]} 17.
Na5 {[%clk 0:01:42.4]} 17... h4 {[%clk 0:01:36.1]} 18. g4 {[%clk 0:01:34.9]}
18... Nd4 {[%clk 0:01:23.3]} 19. Bxd4 {[%clk 0:01:29.6]} 19... exd4 {[%clk
0:01:24.2]} 20. c5 {[%clk 0:01:23.9]} 20... Qxe2 {[%clk 0:01:07.9]} 21. Qxe2
{[%clk 0:01:21.6]} 21... Rxe2 {[%clk 0:01:08.8]} 22. Nac4 {[%clk 0:01:20.9]}
22... Be6 {[%clk 0:01:02.8]} 23. Rxd4 {[%clk 0:01:15.2]} 23... Nd5 {[%clk
0:00:53.1]} 24. Re4 {[%clk 0:01:06.7]} 24... Rxe4 {[%clk 0:00:42.7]} 25. Bxe4
{[%clk 0:01:07.6]} 25... Bd4 {[%clk 0:00:42.7]} 26. Rd1 {[%clk 0:00:42.6]} 26...
Bxc5 {[%clk 0:00:29.3]} 27. Bxd5 {[%clk 0:00:34.9]} 27... cxd5 {[%clk 0:00:28]}
28. Nxd5 {[%clk 0:00:34.3]} 28... Kg7 {[%clk 0:00:24]} 29. b3 {[%clk 0:00:19.8]}
29... b5 {[%clk 0:00:19.2]} 30. Na5 {[%clk 0:00:18.7]} 30... Rd8 {[%clk
0:00:18.8]} 31. Ne3 {[%clk 0:00:18.6]} 31... Rxd1+ {[%clk 0:00:15.6]} 32. Nxd1
{[%clk 0:00:19.5]} 32... Bd5 {[%clk 0:00:12.6]} 33. Ne3 {[%clk 0:00:15.2]} 33...
Bf3 {[%clk 0:00:12.4]} 34. Nc2 {[%clk 0:00:15.1]} 34... Bb6 {[%clk 0:00:09.5]}
35. b4 {[%clk 0:00:15.1]} 35... Bd5 {[%clk 0:00:07.7]} 36. a3 {[%clk 0:00:14.8]}
36... f5 {[%clk 0:00:05.8]} 37. gxf5 {[%clk 0:00:14.2]} 37... gxf5 {[%clk
0:00:06.7]} 38. Ne3 {[%clk 0:00:13.4]} 38... Be4 {[%clk 0:00:06.2]} 39. Nb3
{[%clk 0:00:12.7]} 39... f4 {[%clk 0:00:06.3]} 40. Ng2 {[%clk 0:00:13]} 40... f3
{[%clk 0:00:03.3]} 41. Nd2 {[%clk 0:00:12.9]} 41... Bb7 {[%clk 0:00:01.1]} 42.
Nxh4 {[%clk 0:00:12.7]} 1-0